[Event "SWE-ch Masters 2019"]
[Site "Eskilstuna"]
[Date "2019.07.10"]
[Round "5.8"]
[White "Carlsson, Andreas"]
[Black "Emmoth, Alfons"]
[Result "1/2-1/2"]
[ECO "D00"]
[WhiteElo "2019"]
[BlackElo "2075"]
[Annotator "NA"]
[PlyCount "82"]
[EventDate "2019.07.06"]
[EventType "swiss"]
[EventCountry "SWE"]
[SourceTitle "playchess.com"]
[Source "ChessBase"]
[SourceQuality "1"]
[TimeControl "40/5400+30:1800+30"]

1. d4 {[%emt 0:00:00]} Nf6 {[%emt 0:00:00]} 2. Nf3 {[%emt 0:00:00]} g6 {[%emt 0:00:00]} 3. Nc3 {[%emt 0:00:03]} d5 {[%emt 0:00:15]} 4. Bf4 {[%emt 0:00:07]} Bg7 {[%emt 0:03:49]} 5. e3 {[%emt 0:03:24]} O-O {[%emt 0:04:18]} 6. Be2 {[%emt 0:00:46]} a6 {[%emt 0:06:27]} 7. Ne5 {[%emt 0:02:49]} e6 {[%emt 0:14:17]} 8. h4 {[%emt 0:01:05]} Nbd7 {[%emt 0:09:31]} 9. h5 {[%emt 0:03:16]} Nxe5 {[%emt 0:04:19]} 10. Bxe5 {[%emt 0:00:30]} Ne4 {[%emt 0:01:37]} 11. Bxg7 {[%emt 0:20:52]} Nxc3 {[%emt 0:07:52]} 12. bxc3 {[%emt 0:00:37]} Kxg7 {[%emt 0:00:11]} 13. f4 {[%emt 0:01:22]} Bd7 {[%emt 0:04:37]} 14. g4 {[%emt 0:02:04]} f6 {[%emt 0:05:39]} 15. Qd2 {[%emt 0:05:27]} Bc6 {[%emt 0:07:37]} 16. Rh3 {[%emt 0:05:09]} b5 {[%emt 0:05:10]} 17. Bf3 {[%emt 0:03:42]} Qe7 {[%emt 0:02:25]} 18. a3 {[%emt 0:09:54]} Rae8 {[%emt 0:08:44]} 19. Qh2 {[%emt 0:00:24]} Rh8 {[%emt 0:01:50]} 20. Kd2 {[%emt 0:03:17]} e5 {[%emt 0:05:27]} 21. dxe5 {[%emt 0:06:56]} g5 {[%emt 0:01:50]} 22. h6+ {[%emt 0:00:49]} Kf7 {[%emt 0:00:41]} 23. Rg3 {[%emt 0:01:55]} Rhf8 {[%emt 0:00:50]} 24. Rf1 {[%emt 0:07:30]} Kg8 {[%emt 0:00:31]} 25. Be2 {[%emt 0:00:52]} fxe5 {[%emt 0:00:36]} 26. f5 {[%emt 0:03:36]} Qf6 {[%emt 0:00:34]} 27. Bd3 {[%emt 0:04:24]} Rd8 {[%emt 0:00:31]} 28. Rh3 {[%emt 0:00:35]} Be8 {[%emt 0:00:34]} 29. Rb1 {[%emt 0:01:05]} c5 {[%emt 0:01:02]} 30. Qf2 {[%emt 0:01:32]} Rf7 {[%emt 0:00:27]} 31. Qe1 {[%emt 0:02:27]} Rb7 {[%emt 0:00:56]} 32. Kc1 {[%emt 0:00:40]} Qd6 {[%emt 0:00:28]} 33. c4 {[%emt 0:00:24]} Rdb8 {[%emt 0:01:09]} 34. cxd5 {[%emt 0:02:52]} Qxd5 {[%emt 0:00:58]} 35. e4 {[%emt 0:01:23]} Qf7 {[%emt 0:00:47]} 36. Qe3 {[%emt 0:00:17]} Qe7 {[%emt 0:00:22]} 37. Rf3 {[%emt 0:03:14]} c4 {[%emt 0:00:24]} 38. Be2 {[%emt 0:00:59]} Qf6 {[%emt 0:00:10]} 39. Qc3 {[%emt 0:00:39]} Bf7 {[%emt 0:00:29]} 40. Rf1 {[%emt 0:00:58]} Rd8 {[%emt 0:01:19]} 41. Rd1 {[%emt 0:31:00]} Rxd1+ {[%emt 0:03:53]} 1/2-1/2

[Event "SWE-ch Masters 2019"]
[Site "Eskilstuna"]
[Date "2019.07.10"]
[Round "5.9"]
[White "Adellian, Yashar"]
[Black "Gromark, Per-Olof"]
[Result "0-1"]
[ECO "B22"]
[WhiteElo "1995"]
[BlackElo "1909"]
[Annotator "NA"]
[PlyCount "74"]
[EventDate "2019.07.06"]
[EventType "swiss"]
[EventCountry "SWE"]
[SourceTitle "playchess.com"]
[Source "ChessBase"]
[SourceQuality "1"]
[TimeControl "40/5400+30:1800+30"]

1. e4 {[%emt 0:00:00]} c5 {[%emt 0:00:00]} 2. c3 {[%emt 0:00:00]} Nf6 {[%emt 0:00:25]} 3. e5 {[%emt 0:00:06]} Nd5 {[%emt 0:00:10]} 4. d4 {[%emt 0:00:21]} cxd4 {[%emt 0:00:09]} 5. cxd4 {[%emt 0:00:16]} e6 {[%emt 0:00:23]} 6. Nc3 {[%emt 0:00:10]} Nxc3 {[%emt 0:00:11]} 7. bxc3 {[%emt 0:00:13]} Qc7 {[%emt 0:00:11]} 8. Bd2 {[%emt 0:00:46]} d6 {[%emt 0:00:20]} 9. f4 {[%emt 0:00:40]} g6 {[%emt 0:11:04]} 10. Nf3 {[%emt 0:06:24]} Bg7 {[%emt 0:00:19]} 11. Bd3 {[%emt 0:06:46]} O-O {[%emt 0:00:34]} 12. O-O {[%emt 0:01:01]} b6 {[%emt 0:01:37]} 13. Qe2 {[%emt 0:03:13]} Bb7 {[%emt 0:00:17]} 14. Ng5 {[%emt 0:02:34]} Nd7 {[%emt 0:07:08]} 15. Qg4 {[%emt 0:07:52]} Rfe8 {[%emt 0:13:05]} 16. Rae1 {[%emt 0:07:28]} Nf8 {[%emt 0:01:23]} 17. h4 {[%emt 0:05:31]} Bd5 {[%emt 0:05:44]} 18. Qe2 {[%emt 0:10:32]} f5 {[%emt 0:07:56]} 19. c4 {[%emt 0:07:16]} Bb7 {[%emt 0:01:02]} 20. Bb4 {[%emt 0:01:04]} dxe5 {[%emt 0:03:03]} 21. fxe5 {[%emt 0:01:32]} Qd8 {[%emt 0:04:06]} 22. Bd6 {[%emt 0:01:20]} h6 {[%emt 0:01:41]} 23. Nf3 {[%emt 0:03:41]} Bxf3 {[%emt 0:00:33]} 24. Qxf3 {[%emt 0:03:13]} Qxh4 {[%emt 0:00:22]} 25. d5 {[%emt 0:01:01]} Qd4+ {[%emt 0:02:26]} 26. Kh1 {[%emt 0:01:04]} Nd7 {[%emt 0:04:32]} 27. dxe6 {[%emt 0:04:15]} Nc5 {[%emt 0:00:45]} 28. Bxc5 {[%emt 0:06:04]} Qxc5 {[%emt 0:01:50]} 29. g4 {[%emt 0:03:18]} Rf8 {[%emt 0:10:02]} 30. gxf5 {[%emt 0:01:13]} gxf5 {[%emt 0:00:01]} 31. Qd5 {[%emt 0:04:21]} Qe7 {[%emt 0:00:51]} 32. Bxf5 {[%emt 0:01:35]} Rad8 {[%emt 0:00:01]} 33. Qg2 {[%emt 0:00:51]} Rxf5 {[%emt 0:02:35]} 34. Rxf5 {[%emt 0:05:51]} Qh4+ {[%emt 0:00:31]} 35. Kg1 {[%emt 0:00:16]} Qxe1+ {[%emt 0:00:19]} 36. Rf1 {[%emt 0:01:41]} Qe3+ {[%emt 0:01:41]} 37. Kh1 {[%emt 0:00:21]} Qxe5 {[%emt 0:01:07]} 0-1

[Event "SWE-ch Masters 2019"]
[Site "Eskilstuna"]
[Date "2019.07.10"]
[Round "5.10"]
[White "Hellstrom, Magnus"]
[Black "Bannoura, Jeries"]
[Result "1-0"]
[ECO "B06"]
[WhiteElo "2061"]
[BlackElo "1976"]
[Annotator "NA"]
[PlyCount "74"]
[EventDate "2019.07.06"]
[EventType "swiss"]
[EventCountry "SWE"]
[SourceTitle "playchess.com"]
[Source "ChessBase"]
[SourceQuality "1"]
[TimeControl "40/5400+30:1800+30"]

1. e4 {[%emt 0:04:53]} d6 {[%emt 0:00:00]} 2. d4 {[%emt 0:01:13]} g6 {[%emt 0:00:00]} 3. Nf3 {[%emt 0:00:22]} Bg7 {[%emt 0:00:00]} 4. Be3 {[%emt 0:00:22]} Nc6 {[%emt 0:01:53]} 5. Nc3 {[%emt 0:08:26]} Bg4 {[%emt 0:00:32]} 6. Qd2 {[%emt 0:13:39]} Bxf3 {[%emt 0:00:51]} 7. gxf3 {[%emt 0:00:05]} e5 {[%emt 0:00:21]} 8. dxe5 {[%emt 0:05:04]} Nxe5 {[%emt 0:00:11]} 9. Be2 {[%emt 0:00:20]} Ne7 {[%emt 0:03:16]} 10. f4 {[%emt 0:02:28]} N5c6 {[%emt 0:00:12]} 11. O-O-O {[%emt 0:00:42]} Qd7 {[%emt 0:11:00]} 12. Kb1 {[%emt 0:07:47]} O-O-O {[%emt 0:01:17]} 13. h4 {[%emt 0:04:00]} h5 {[%emt 0:01:12]} 14. Bf1 {[%emt 0:02:16]} Kb8 {[%emt 0:06:04]} 15. Bh3 {[%emt 0:01:24]} f5 {[%emt 0:01:23]} 16. Nd5 {[%emt 0:16:39]} Qe6 {[%emt 0:01:50]} 17. Rhe1 {[%emt 0:01:02]} Qf7 {[%emt 0:03:45]} 18. Bg2 {[%emt 0:03:09]} fxe4 {[%emt 0:01:46]} 19. Bxe4 {[%emt 0:00:31]} Nf5 {[%emt 0:00:16]} 20. Qd3 {[%emt 0:01:32]} Rhe8 {[%emt 0:11:02]} 21. f3 {[%emt 0:03:56]} Re6 {[%emt 0:08:12]} 22. Bf2 {[%emt 0:04:01]} Nfe7 {[%emt 0:05:10]} 23. Rg1 {[%emt 0:07:01]} Nf5 {[%emt 0:03:01]} 24. Qb5 {[%emt 0:01:50]} Ncd4 {[%emt 0:02:33]} 25. Qa4 {[%emt 0:04:12]} c5 {[%emt 0:06:16]} 26. c3 {[%emt 0:01:35]} Nc6 {[%emt 0:00:12]} 27. Qc2 {[%emt 0:01:29]} Nfe7 {[%emt 0:03:28]} 28. Qb3 {[%emt 0:00:12]} Nf5 {[%emt 0:04:15]} 29. Qc2 {[%emt 0:00:28]} Nfe7 {[%emt 0:00:12]} 30. Ka1 {[%emt 0:01:25]} Bh6 {[%emt 0:02:08]} 31. Qb3 {[%emt 0:00:51]} Nc8 {[%emt 0:03:21]} 32. Ne3 {[%emt 0:00:45]} N8e7 {[%emt 0:01:54]} 33. f5 {[%emt 0:01:04]} gxf5 {[%emt 0:01:30]} 34. Nxf5 {[%emt 0:00:07]} Na5 {[%emt 0:03:00]} 35. Qb5 {[%emt 0:00:19]} Nxf5 {[%emt 0:01:57]} 36. Qxa5 {[%emt 0:00:24]} Ree8 {[%emt 0:00:33]} 37. Bxc5 {[%emt 0:00:40]} Rxe4 {[%emt 0:03:23]} 1-0

[Event "SWE-ch Masters 2019"]
[Site "Eskilstuna"]
[Date "2019.07.11"]
[Round "6.1"]
[White "Nikolic, Vladan"]
[Black "Landgren, Andreas"]
[Result "1-0"]
[ECO "E04"]
[WhiteElo "2153"]
[BlackElo "2246"]
[Annotator "ChessBase"]
[PlyCount "55"]
[EventDate "2019.07.06"]
[EventType "swiss"]
[EventCountry "SWE"]
[SourceTitle "playchess.com"]
[Source "ChessBase"]
[SourceQuality "1"]
[TimeControl "40/5400+30:1800+30"]

1. Nf3 {[%emt 0:00:00]} d5 {[%emt 0:00:00]} 2. g3 {[%emt 0:00:00]} Nf6 {[%emt 0:00:00]} 3. Bg2 {[%emt 0:00:00]} e6 {[%emt 0:00:02]} 4. O-O {[%emt 0:00:05]} c5 {[%emt 0:00:06]} 5. d4 {[%emt 0:00:13]} Nc6 {[%emt 0:00:07]} 6. c4 {[%emt 0:00:17]} dxc4 {[%emt 0:00:08]} 7. Qa4 {[%emt 0:00:50]} Bd7 {[%emt 0:00:56]} 8. Qxc4 {[%emt 0:00:18]} cxd4 {[%emt 0:00:15]} 9. Nxd4 {[%emt 0:01:03]} Rc8 {[%emt 0:00:11]} 10. Nc3 {[%emt 0:00:26]} Nxd4 {[%emt 0:00:16]} 11. Qxd4 {[%emt 0:00:06]} Bc5 {[%emt 0:00:08]} 12. Qh4 {[%emt 0:00:15]} O-O {[%emt 0:00:07]} 13. Bxb7 {[%emt 0:02:39]} Rb8 {[%emt 0:00:14]} 14. Bf3 {[%emt 0:00:15]} Rb4 {[%emt 0:00:11]} 15. Qg5 {[%emt 0:01:47]} Bd4 {[%emt 0:02:45]} 16. Qd2 {[%emt 0:03:20]} Qc7 {[%emt 0:02:56]} 17. Nd1 {[%emt 0:09:35]} Rfb8 {[%emt 0:10:38]} 18. Rb1 {[%emt 0:09:55]} Qe5 {[%emt 0:14:05]} 19. b3 {[%emt 0:18:56]} Qf5 {[%emt 0:39:05]} 20. Ba3 {[%emt 0:01:14]} R4b5 {[%emt 0:03:07]} 21. Qxd4 {[%emt 0:03:28]} Qxb1 {[%emt 0:00:52]} 22. Nc3 {[%emt 0:00:14]} Qf5 {[%emt 0:00:46]} 23. Nxb5 {[%emt 0:00:14]} Rxb5 {[%emt 0:00:27]} 24. Be7 {[%emt 0:06:04]} Nd5 {[%emt 0:06:03]} 25. Qxa7 {[%emt 0:01:09]} Bc6 {[%emt 0:02:18]} 26. Rc1 {[%emt 0:01:46]} Nxe7 {[%emt 0:01:21]} 27. Qxe7 {[%emt 0:00:28]} Qg5 {[%emt 0:01:49]} 28. Qxg5 {[%emt 0:00:21]} 1-0

[Event "SWE-ch Masters 2019"]
[Site "Eskilstuna"]
[Date "2019.07.11"]
[Round "6.2"]
[White "Crevatin, Leo"]
[Black "Olsson, Svante"]
[Result "1-0"]
[ECO "E85"]
[WhiteElo "2146"]
[BlackElo "2155"]
[Annotator "ChessBase"]
[PlyCount "91"]
[EventDate "2019.07.06"]
[EventType "swiss"]
[EventCountry "SWE"]
[SourceTitle "playchess.com"]
[Source "ChessBase"]
[SourceQuality "1"]
[TimeControl "40/5400+30:1800+30"]

1. d4 {[%emt 0:00:00]} g6 {[%emt 0:00:00]} 2. c4 {[%emt 0:00:00]} Bg7 {[%emt 0:00:00]} 3. Nc3 {[%emt 0:00:00]} d6 {[%emt 0:00:00]} 4. e4 {[%emt 0:00:00]} Nf6 {[%emt 0:00:25]} 5. f3 {[%emt 0:00:00]} O-O {[%emt 0:00:16]} 6. Nge2 {[%emt 0:00:00]} Nc6 {[%emt 0:00:17]} 7. Be3 {[%emt 0:00:00]} Re8 {[%emt 0:00:27]} 8. Qd2 {[%emt 0:00:24]} e5 {[%emt 0:00:19]} 9. d5 {[%emt 0:00:13]} Ne7 {[%emt 0:04:02]} 10. Ng3 {[%emt 0:01:49]} h5 {[%emt 0:02:25]} 11. h4 {[%emt 0:01:54]} Bd7 {[%emt 0:04:27]} 12. Bd3 {[%emt 0:01:17]} a6 {[%emt 0:00:25]} 13. O-O {[%emt 0:03:27]} c5 {[%emt 0:00:20]} 14. Rab1 {[%emt 0:02:04]} Kh7 {[%emt 0:02:39]} 15. b4 {[%emt 0:02:21]} b6 {[%emt 0:00:08]} 16. a4 {[%emt 0:01:59]} Neg8 {[%emt 0:00:13]} 17. bxc5 {[%emt 0:08:29]} bxc5 {[%emt 0:00:03]} 18. Rb3 {[%emt 0:03:55]} Qc7 {[%emt 0:06:14]} 19. Rfb1 {[%emt 0:00:15]} Reb8 {[%emt 0:00:07]} 20. Qb2 {[%emt 0:00:28]} Rxb3 {[%emt 0:01:21]} 21. Qxb3 {[%emt 0:00:03]} Bh6 {[%emt 0:01:44]} 22. Bxh6 {[%emt 0:03:00]} Kxh6 {[%emt 0:01:11]} 23. Qb6 {[%emt 0:01:28]} Qxb6 {[%emt 0:01:25]} 24. Rxb6 {[%emt 0:00:23]} Ne8 {[%emt 0:00:14]} 25. a5 {[%emt 0:01:51]} Ra7 {[%emt 0:02:18]} 26. Bc2 {[%emt 0:01:23]} Ne7 {[%emt 0:00:14]} 27. Ba4 {[%emt 0:02:14]} Bxa4 {[%emt 0:03:21]} 28. Nxa4 {[%emt 0:00:02]} g5 {[%emt 0:02:37]} 29. Nxc5 {[%emt 0:06:00]} gxh4 {[%emt 0:00:22]} 30. Nf5+ {[%emt 0:04:48]} Nxf5 {[%emt 0:00:14]} 31. exf5 {[%emt 0:00:02]} Rc7 {[%emt 0:00:47]} 32. Ne4 {[%emt 0:01:09]} Rxc4 {[%emt 0:02:26]} 33. Rxa6 {[%emt 0:00:29]} Kg7 {[%emt 0:01:03]} 34. Nxd6 {[%emt 0:03:26]} Rc1+ {[%emt 0:00:22]} 35. Kh2 {[%emt 0:00:29]} Nf6 {[%emt 0:00:20]} 36. Ra7 {[%emt 0:01:22]} Nxd5 {[%emt 0:00:16]} 37. Rxf7+ {[%emt 0:00:05]} Kh6 {[%emt 0:03:42]} 38. a6 {[%emt 0:01:10]} Ra1 {[%emt 0:00:20]} 39. a7 {[%emt 0:00:38]} Ra2 {[%emt 0:00:13]} 40. Nb5 {[%emt 0:04:21]} h3 {[%emt 0:03:50]} 41. Rf8 {[%emt 0:30:45]} Rxg2+ {[%emt 0:37:02]} 42. Kh1 {[%emt 0:00:11]} Rc2 {[%emt 0:00:33]} 43. a8=Q {[%emt 0:02:21]} Rc1+ {[%emt 0:00:15]} 44. Kh2 {[%emt 0:00:05]} Rc2+ {[%emt 0:00:29]} 45. Kg3 {[%emt 0:01:19]} Rg2+ {[%emt 0:00:41]} 46. Kh4 {[%emt 0:00:05]} 1-0

[Event "SWE-ch Masters 2019"]
[Site "Eskilstuna"]
[Date "2019.07.11"]
[Round "6.3"]
[White "Zadruzny, Nicolaj"]
[Black "Eriksson, Jorgen"]
[Result "1-0"]
[ECO "B11"]
[WhiteElo "2280"]
[BlackElo "2211"]
[Annotator "NA"]
[PlyCount "73"]
[EventDate "2019.07.06"]
[EventType "swiss"]
[EventCountry "SWE"]
[SourceTitle "playchess.com"]
[Source "ChessBase"]
[SourceQuality "1"]
[TimeControl "40/5400+30:1800+30"]

1. e4 {[%emt 0:00:00]} c6 {[%emt 0:00:40]} 2. Nf3 {[%emt 0:00:00]} d5 {[%emt 0:00:22]} 3. Nc3 {[%emt 0:00:05]} Nf6 {[%emt 0:03:53]} 4. e5 {[%emt 0:00:59]} Ne4 {[%emt 0:00:09]} 5. d4 {[%emt 0:01:18]} Nxc3 {[%emt 0:01:54]} 6. bxc3 {[%emt 0:00:04]} e6 {[%emt 0:01:02]} 7. Bd3 {[%emt 0:21:05]} Be7 {[%emt 0:05:08]} 8. h4 {[%emt 0:06:27]} f6 {[%emt 0:10:57]} 9. exf6 {[%emt 0:03:22]} gxf6 {[%emt 0:00:10]} 10. Qe2 {[%emt 0:02:50]} c5 {[%emt 0:26:24]} 11. c4 {[%emt 0:10:14]} dxc4 {[%emt 0:10:04]} 12. Bxc4 {[%emt 0:00:12]} cxd4 {[%emt 0:02:48]} 13. O-O {[%emt 0:04:59]} Nc6 {[%emt 0:05:11]} 14. Bxe6 {[%emt 0:27:57]} Bxe6 {[%emt 0:00:56]} 15. Qxe6 {[%emt 0:00:04]} Qd7 {[%emt 0:06:56]} 16. Qxd7+ {[%emt 0:00:07]} Kxd7 {[%emt 0:00:05]} 17. Rd1 {[%emt 0:00:50]} Rhd8 {[%emt 0:04:25]} 18. Nxd4 {[%emt 0:00:56]} Ke8 {[%emt 0:05:17]} 19. Be3 {[%emt 0:03:59]} Nxd4 {[%emt 0:00:17]} 20. Rxd4 {[%emt 0:10:09]} Rxd4 {[%emt 0:07:06]} 21. Bxd4 {[%emt 0:00:05]} b6 {[%emt 0:00:15]} 22. c3 {[%emt 0:02:24]} Rc8 {[%emt 0:01:57]} 23. Kf1 {[%emt 0:01:28]} Kf7 {[%emt 0:00:32]} 24. Ke2 {[%emt 0:00:14]} Bc5 {[%emt 0:01:43]} 25. Kd3 {[%emt 0:00:33]} Bxd4 {[%emt 0:02:19]} 26. cxd4 {[%emt 0:00:06]} Ke6 {[%emt 0:00:59]} 27. Re1+ {[%emt 0:00:29]} Kd6 {[%emt 0:00:29]} 28. g4 {[%emt 0:01:00]} Rg8 {[%emt 0:00:23]} 29. f3 {[%emt 0:00:51]} Rg7 {[%emt 0:00:49]} 30. Rg1 {[%emt 0:01:04]} Kd5 {[%emt 0:00:48]} 31. Rb1 {[%emt 0:00:26]} Ke6 {[%emt 0:00:35]} 32. Rb5 {[%emt 0:00:21]} Kd6 {[%emt 0:00:51]} 33. Rh5 {[%emt 0:00:19]} Kd7 {[%emt 0:00:30]} 34. Rh6 {[%emt 0:00:23]} Rf7 {[%emt 0:00:32]} 35. Ke4 {[%emt 0:00:23]} Kc6 {[%emt 0:00:21]} 36. g5 {[%emt 0:00:26]} Kb5 {[%emt 0:00:09]} 37. gxf6 {[%emt 0:00:27]} 1-0

[Event "SWE-ch Masters 2019"]
[Site "Eskilstuna"]
[Date "2019.07.11"]
[Round "6.4"]
[White "Jogstad, Daniel"]
[Black "Wahlund, Max"]
[Result "0-1"]
[ECO "C10"]
[WhiteElo "2154"]
[BlackElo "2100"]
[Annotator "ChessBase"]
[PlyCount "48"]
[EventDate "2019.07.06"]
[EventType "swiss"]
[EventCountry "SWE"]
[SourceTitle "playchess.com"]
[Source "ChessBase"]
[SourceQuality "1"]
[TimeControl "40/5400+30:1800+30"]

1. e4 {[%emt 0:00:00]} e6 {[%emt 0:00:00]} 2. d4 {[%emt 0:00:07]} d5 {[%emt 0:00:00]} 3. Nd2 {[%emt 0:00:05]} dxe4 {[%emt 0:00:00]} 4. Nxe4 {[%emt 0:00:10]} Nd7 {[%emt 0:00:00]} 5. Nf3 {[%emt 0:07:24]} Ngf6 {[%emt 0:00:00]} 6. Nxf6+ Nxf6 {[%emt 0:00:00]} 7. Bd3 {[%emt 0:03:22]} c5 {[%emt 0:00:07]} 8. c3 {[%emt 0:01:01]} cxd4 {[%emt 0:00:31]} 9. cxd4 {[%emt 0:00:10]} Bb4+ {[%emt 0:00:32]} 10. Bd2 {[%emt 0:00:07]} Bxd2+ {[%emt 0:00:18]} 11. Qxd2 {[%emt 0:00:05]} O-O {[%emt 0:00:08]} 12. O-O {[%emt 0:01:54]} b6 {[%emt 0:01:54]} 13. Qf4 {[%emt 0:09:39]} Bb7 {[%emt 0:00:02]} 14. Rad1 {[%emt 0:00:07]} Qd5 {[%emt 0:02:53]} 15. Bb1 {[%emt 0:05:10]} Rac8 {[%emt 0:02:01]} 16. Rfe1 {[%emt 0:00:41]} Qh5 {[%emt 0:05:01]} 17. Ne5 {[%emt 0:03:37]} Nd5 {[%emt 0:08:16]} 18. Qg3 {[%emt 0:07:29]} g5 {[%emt 0:07:41]} 19. Nf3 {[%emt 0:07:14]} f6 {[%emt 0:08:07]} 20. Rxe6 {[%emt 0:08:04]} Nf4 {[%emt 0:01:05]} 21. Ree1 {[%emt 0:03:18]} Rfe8 {[%emt 0:03:56]} 22. Bf5 {[%emt 0:18:24]} Rxe1+ {[%emt 0:14:27]} 23. Rxe1 {[%emt 0:00:15]} Re8 {[%emt 0:00:07]} 24. Qg4 {[%emt 0:13:05]} Bxf3 {[%emt 0:03:11]} 0-1

[Event "SWE-ch Masters 2019"]
[Site "Eskilstuna"]
[Date "2019.07.11"]
[Round "6.5"]
[White "Engstrom, Kaj"]
[Black "Olsson, William"]
[Result "1-0"]
[ECO "B70"]
[WhiteElo "2234"]
[BlackElo "2113"]
[Annotator "NA"]
[PlyCount "91"]
[EventDate "2019.07.06"]
[EventType "swiss"]
[EventCountry "SWE"]
[SourceTitle "playchess.com"]
[Source "ChessBase"]
[SourceQuality "1"]
[TimeControl "40/5400+30:1800+30"]

1. e4 {[%emt 0:00:00]} c5 {[%emt 0:00:00]} 2. Nf3 {[%emt 0:00:00]} d6 {[%emt 0:00:00]} 3. d4 {[%emt 0:00:17]} cxd4 {[%emt 0:00:00]} 4. Nxd4 {[%emt 0:00:02]} Nf6 {[%emt 0:00:00]} 5. Nc3 {[%emt 0:00:01]} g6 {[%emt 0:00:04]} 6. Be2 {[%emt 0:05:24]} Bg7 {[%emt 0:00:44]} 7. Nb3 {[%emt 0:00:38]} Nc6 {[%emt 0:00:45]} 8. g4 {[%emt 0:01:59]} h5 {[%emt 0:14:53]} 9. g5 {[%emt 0:03:05]} Nd7 {[%emt 0:01:38]} 10. f4 {[%emt 0:04:18]} Nb6 {[%emt 0:03:16]} 11. Be3 {[%emt 0:01:48]} Be6 {[%emt 0:02:04]} 12. Nd4 {[%emt 0:07:01]} Bd7 {[%emt 0:05:00]} 13. O-O {[%emt 0:13:14]} Bh3 {[%emt 0:11:17]} 14. Rf2 {[%emt 0:00:33]} Na5 {[%emt 0:15:19]} 15. Bb5+ {[%emt 0:15:17]} Bd7 {[%emt 0:00:19]} 16. f5 {[%emt 0:08:56]} Nc6 {[%emt 0:17:28]} 17. f6 {[%emt 0:10:58]} exf6 {[%emt 0:01:26]} 18. gxf6 {[%emt 0:00:33]} Bf8 {[%emt 0:00:18]} 19. Nd5 {[%emt 0:01:16]} Nxd5 {[%emt 0:04:56]} 20. exd5 {[%emt 0:00:25]} Ne5 {[%emt 0:00:07]} 21. Qe2 {[%emt 0:06:08]} a6 {[%emt 0:02:05]} 22. Bxd7+ {[%emt 0:00:49]} Kxd7 {[%emt 0:00:15]} 23. Bg5 {[%emt 0:07:20]} Qb6 {[%emt 0:00:48]} 24. c3 {[%emt 0:00:18]} Re8 {[%emt 0:00:39]} 25. Qf1 {[%emt 0:01:37]} Qc5 {[%emt 0:00:58]} 26. Qg2 {[%emt 0:00:17]} Ng4 {[%emt 0:01:35]} 27. Rd2 {[%emt 0:03:21]} Re5 {[%emt 0:00:41]} 28. Bf4 {[%emt 0:00:33]} Rf5 {[%emt 0:00:10]} 29. Rf1 {[%emt 0:01:29]} g5 {[%emt 0:03:16]} 30. b4 {[%emt 0:01:21]} Qa7 {[%emt 0:01:05]} 31. h3 {[%emt 0:04:18]} gxf4 {[%emt 0:06:33]} 32. hxg4 {[%emt 0:00:07]} Rg5 {[%emt 0:00:20]} 33. Rxf4 {[%emt 0:01:03]} Rhg8 {[%emt 0:00:12]} 34. Kf1 {[%emt 0:01:15]} hxg4 {[%emt 0:00:23]} 35. Re2 {[%emt 0:00:32]} R8g6 {[%emt 0:01:53]} 36. Qh1 {[%emt 0:01:07]} Rh6 {[%emt 0:00:53]} 37. Re7+ {[%emt 0:00:15]} Kd8 {[%emt 0:00:29]} 38. Qe4 {[%emt 0:00:03]} g3 {[%emt 0:05:24]} 39. Re8+ {[%emt 0:00:32]} Kd7 {[%emt 0:00:07]} 40. Rxf8 {[%emt 0:00:25]} g2+ {[%emt 0:00:35]} 41. Qxg2 {[%emt 0:30:29]} Rxg2 {[%emt 0:30:45]} 42. Rxf7+ {[%emt 0:00:00]} Ke8 {[%emt 0:00:00]} 43. Re7+ {[%emt 0:00:00]} Kd8 {[%emt 0:00:00]} 44. Ne6+ {[%emt 0:00:00]} Kc8 {[%emt 0:00:00]} 45. Re8+ {[%emt 0:00:00]} Kd7 {[%emt 0:00:00]} 46. Rd8# {[%emt 0:00:03]} 1-0